Cogmind - Beta 14 @@@ ROGUE MODE // 2024.08.26 @ 15:05:58 Player: jimmyl Result: Destroyed by G-67 Veteran with Plasma Rifle Performance ------------- Evolutions (6) 3000 Regions Visited (13) 2600 Robots Destroyed (162) 810 Value Destroyed (7744) 7744 Prototype IDs (26) 520 Alien Tech Used (0) 0 Bonus (4789) 4789 TOTAL SCORE: 19463 Bonus ------- High Alert Combat Kills 2199 Follower Combat Kills 851 Entered Garrisons 600 Used RIF Installer 1500 Aligned with FarCom 300 Friendly Fire -661 Cogmind --------- Core Integrity 0/1150 Matter 295/300 Energy 76/150 System Corruption 5% Temperature Cool (4) Movement Core (100) Ox1 Location -4/Factory Parts ------- > --- POWER (2) -------- Micro Fission Core > --- PROPULSION (4) --- (None) > --- UTILITY (10) ----- Improved Target Analyzer Core Analyzer Improved Armor Integrity Analyzer > --- WEAPON (3) ------- (None) > --- INVENTORY (5) ---- Carbon-fiber Leg Authchip [R/Combat] Relay Coupler [NC] (33) Relay Coupler [Demolisher] (23) Fusion Bomb Launcher Peak State ------------ > --- POWER ------------ Light Angular Momentum Engine Micro Fission Core > --- PROPULSION ------- Carbon-fiber Leg Carbon-fiber Leg Flexi-carbon Leg Flexi-carbon Leg > --- UTILITY ---------- Advanced Heat Sink Advanced Heat Sink Large Storage Unit Improved Target Analyzer Core Analyzer Improved Armor Integrity Analyzer Weapon Cycler Layered Light Armor Plating Graphene Brace Advanced Hardlight Generator > --- WEAPON ----------- Heavy Tesla Rifle Wave Gun Phase Cannon > --- INVENTORY -------- Angular Momentum Engine Angular Momentum Engine Light Antimatter Reactor Carbon-fiber Leg Compact Wheel Advanced Heat Sink Authchip [R/Combat] Relay Coupler [NC] Relay Coupler [Demolisher] Plasma Rifle Phase Gun Guided Plasma Cannon Heavy Assault Cannon Fusion Bomb Launcher [Rating: 102] Favorites ----------- Power Light Nuclear Core Engine Heavy Ion Engine Power Core Light Nuclear Core Reactor Light Antimatter Reactor Propulsion Light Treads Treads Light Treads Leg Titanium Leg Wheel Wheel Hover Unit Antigrav System Flight Unit Improved Flight Unit Utility Large Storage Unit Device Advanced Heat Sink Storage Large Storage Unit Processor Core Analyzer Hackware Hacking Suite Protection Medium Reactive Plating Weapon Ion Cannon Energy Gun Heavy Laser Energy Cannon Ion Cannon Ballistic Gun Railgun Ballistic Cannon Hardcell Cannon Launcher Improved Grenade Launcher Special Weapon Remote Datajack Special Melee Weapon Improved Datajack Build | -11 -10 -10 -10 -9 -8 -8 -7 -7 -6 -5 -5 -5 -4 ------- Run | Yrd Mat Min Exi Min Mat Gar Fac Gar Fac Fac Gar Fac Fac Slots Evolved 12 | . . . . . 4 . 2 . 2 2 . . 2 Power 1 | . . . . . . . . . . 1 . . . Propulsion 2 | . . . . . 2 . . . . . . . . Utility 8 | . . . . . 2 . 2 . 2 1 . . 1 Weapon 1 | . . . . . . . . . . . . . 1 Parts Attached 154 | . 9 3 2 2 20 21 4 26 . 7 36 3 21 Power 16 | . 2 . . . 1 1 . 2 . . 5 . 5 Engine 10 | . 2 . . . 1 . . 1 . . 3 . 3 Core 4 | . . . . . . 1 . 1 . . 1 . 1 Reactor 2 | . . . . . . . . . . . 1 . 1 Propulsion 35 | . 2 2 2 . 6 5 . 2 . 2 9 1 4 Treads 13 | . 2 . 1 . 1 2 . 2 . . 5 . . Leg 14 | . . . . . 4 3 . . . . 4 1 2 Wheel 6 | . . 2 . . 1 . . . . 2 . . 1 Hover 1 | . . . . . . . . . . . . . 1 Flight 1 | . . . 1 . . . . . . . . . . Utility 49 | . 2 . . 1 6 5 3 14 . 5 8 . 5 Device 17 | . . . . 1 2 1 1 2 . 2 5 . 3 Storage 3 | . 2 . . . 1 . . . . . . . . Processor 6 | . . . . . 2 . . 1 . 3 . . . Hackware 13 | . . . . . . 3 1 9 . . . . . Protection 10 | . . . . . 1 1 1 2 . . 3 . 2 Artifact . | . . . . . . . . . . . . . . Weapon 54 | . 3 1 . 1 7 10 1 8 . . 14 2 7 Energy Gun 14 | . 3 . . . . . . . . . 5 1 5 Energy Cannon 21 | . . . . 1 5 5 1 3 . . 4 1 1 Ballistic Gun 5 | . . 1 . . . . . 1 . . 3 . . Ballistic Cannon 4 | . . . . . 1 . . 1 . . 1 . 1 Launcher 6 | . . . . . 1 3 . 1 . . 1 . . Special Weapon 2 | . . . . . . . . 2 . . . . . Impact Weapon . | . . . . . . . . . . . . . . Slashing Weapon . | . . . . . . . . . . . . . . Piercing Weapon . | . . . . . . . . . . . . . . Special Melee Weapon 2 | . . . . . . 2 . . . . . . . Unidentified Prototypes 3 | . 1 . 1 . . . . . . . . . 1 Corrupted Parts 2 | . . . . . . . . . . . 1 . 1 System Corruption 13 | . . . . . . . . . . . 10 . 3 Parts Lost 66 | . 2 1 . . 4 9 . 5 . 2 19 . 24 Power 11 | . 1 . . . . 1 . 2 . . 3 . 4 Propulsion 23 | . . 1 . . 1 6 . 2 . 2 5 . 6 Utility 17 | . . . . . 2 2 . . . . 5 . 8 Weapon 15 | . 1 . . . 1 . . 1 . . 6 . 6 Highest Loss Streak 24 | . 1 1 . . 1 2 . 2 . 1 7 . 24 To Critical Strikes . | . . . . . . . . . . . . . . Average Slot Usage (%) 84 | . 85 83 57 66 95 86 73 81 66 82 84 99 86 Engine 5 | . 14 14 14 14 9 2 . 1 6 5 3 5 5 Core 3 | . . . . . . 6 7 4 . . 1 5 3 Treads 8 | . 26 18 14 14 4 . 15 15 13 5 4 . . Leg 11 | . 1 . . . 22 25 . . . . 10 23 17 Wheel 2 | . . 8 14 14 6 . . . . 7 1 . . Device 8 | . . . . 8 8 2 . 1 6 17 21 29 23 Storage 8 | . 14 14 14 14 9 9 7 7 6 5 5 5 4 Processor 14 | . . . . . 14 18 15 15 13 21 19 17 15 Hackware 3 | . . . . . . 2 4 11 . . . . . Protection 2 | . . . . . 2 2 7 5 6 5 . . 3 Energy Gun 2 | . 26 14 . . . . . . . . 5 5 5 Energy Cannon 7 | . . . . 1 16 14 8 6 . . 1 4 4 Ballistic Gun 1 | . 1 14 . . . . . 1 6 5 2 . . Special Weapon 1 | . . . . . . . . 4 . . . . . Peak Build Rating 102 | . 10 10 10 15 38 38 34 55 45 63 82 85 102 Average Rating 39 | . 6 9 7 7 31 28 30 36 45 61 67 82 86 On Entrance 32 | 6 6 8 10 7 8 38 24 32 45 45 63 79 85 Naked Turns . | . . . . . . . . . . . . . . Heaviest Build 72 | 14 49 32 28 29 44 57 59 67 67 69 72 61 72 Greatest Support 70 | 20 40 40 16 16 68 57 40 60 40 40 60 65 70 Greatest Overweight (x) 11 | . 1 1 1 1 4 3 1 3 1 6 11 1 2 Average Overweight (x) . | . . . 1 1 . . 1 . 1 2 . . . Largest Inventory Capacity 15 | . 15 15 15 15 15 15 15 15 15 15 15 15 15 Average Capacity 14 | . 14 15 15 15 15 15 15 15 15 15 15 15 14 Most Carried 15 | . 9 13 13 9 15 15 15 15 10 9 11 11 15 Average Carried 11 | . 6 11 9 8 13 13 14 12 10 7 6 8 13 Final Capacity 15 | 8 15 15 15 15 15 15 15 15 15 15 15 15 5 Final Carried 15 | 6 9 12 9 9 15 15 15 10 10 7 7 11 5 Class Distribution -------------------- 42% | Scavenger-Mutant 31% | Mutant 25% | Bothacker-Mutant Dominant Class ---------------- Mutant | -10/Materials Mutant | -10/Mines Mutant | -10/Exiles Mutant | -9/Mines Mutant | -8/Materials Scavenger-Mutant | -8/Garrison Bothacker-Mutant | -7/Factory Bothacker-Mutant | -7/Garrison Scavenger-Mutant | -6/Factory Scavenger-Mutant | -5/Factory Scavenger-Mutant | -5/Garrison Scavenger-Mutant | -5/Factory Scavenger-Mutant | -4/Factory Resources | -11 -10 -10 -10 -9 -8 -8 -7 -7 -6 -5 -5 -5 -4 ----------- Run | Yrd Mat Min Exi Min Mat Gar Fac Gar Fac Fac Gar Fac Fac Matter Collected 3046 | 169 71 133 . 59 217 569 40 481 . 419 700 78 110 Remotely . | . . . . . . . . . . . . . . Salvage Created 6147 | . 296 121 . 58 1460 879 45 329 21 458 1357 91 1032 Parts 312 | . 17 8 . 4 100 51 3 14 . 23 52 1 39 Haulers Intercepted . | . . . . . . . . . . . . . . Recyclers Shooed 1 | . . . . . . . . . . . . . 1 Parts Field Recycled . | . . . . . . . . . . . . . . Retrieved Matter . | . . . . . . . . . . . . . . Parts Self-Destructed . | . . . . . . . . . . . . . . Prevented . | . . . . . . . . . . . . . . Kills | -11 -10 -10 -10 -9 -8 -8 -7 -7 -6 -5 -5 -5 -4 ------- Run | Yrd Mat Min Exi Min Mat Gar Fac Gar Fac Fac Gar Fac Fac Combat Hostiles Destroyed 147 | . 9 6 . 1 31 39 1 8 . 7 27 1 17 Melee 1 | . . . . . . . . . . . . . 1 Guns 38 | . 9 6 . . . . . . . 3 13 . 7 Cannons 66 | . . . . 1 27 12 1 6 . 3 7 1 8 AOE 36 | . . . . . 4 26 . 1 . 1 4 . . Classes Destroyed 18 | . 3 1 . 1 7 3 1 1 . 1 . . . Worker 6 | . . . . . 1 . . . . 4 . . 1 Builder 2 | . 1 . . . . . . . . 1 . . . Tunneler 1 | . . . . . 1 . . . . . . . . Recycler 1 | . . . . . . . . . . 1 . . . Watcher 7 | . . . . . 4 . . . 1 . . 1 1 Swarmer 41 | . 6 2 . . 7 11 . 3 . . 8 . 4 Cutter 1 | . . . . . . 1 . . . . . . . Saboteur 9 | . . . . . . 8 . . . . . . 1 Grunt 52 | . 3 1 . . 12 9 . 2 . 4 15 . 6 Brawler 4 | . . . . . . 3 . . . . . . 1 Duelist 4 | . . . . 1 . 2 . . . . 1 . . Sentry 15 | . . . . . 8 5 . . . . 1 1 . Specialist 3 | . . . . . 2 . . 1 . . . . . Hunter 5 | . . . . . 1 . . . . . . . 4 Programmer 8 | . . . . . . . 1 2 . 3 1 . 1 Heavy 1 | . . . . . 1 . . . . . . . . Behemoth 2 | . . . . . . . . 1 . . 1 . . Assembled 3 | . . 3 . . . . . . . . . . . Best Kill Streak 13 | . 4 2 . 1 6 13 1 3 1 7 6 1 5 Combat Bots Only 13 | . 3 2 . 1 4 13 1 3 . 3 6 1 3 Max Kills in Single Turn 4 | . 2 1 . 1 4 4 1 1 1 4 4 1 1 Gunslinging 1 | . 1 . . . . . . . . . 1 . . Exploded 4 | . . . . . 3 4 . 1 . 1 4 . . Melee 1 | . . . . . . . . . . . . . 1 Uniques/NPCs Destroyed . | . . . . . . . . . . . . . . Combat | -11 -10 -10 -10 -9 -8 -8 -7 -7 -6 -5 -5 -5 -4 -------- Run | Yrd Mat Min Exi Min Mat Gar Fac Gar Fac Fac Gar Fac Fac Hostile Shots Fired 963 | . 52 27 . . 115 71 4 67 . 35 197 . 395 Missed 279 | . 9 3 . . 36 17 . 23 . 12 55 . 124 Damage Taken 10985 | . 546 280 . 4 1369 1061 62 640 . 660 2840 16 3507 Core 2690 | . 101 94 . . 298 232 . 71 . 167 561 16 1150 Absorbed by Shields 856 | . . . . . . . . . . . . 8 848 Ignored by Resistances 155 | . . . . . . . . 104 . 6 45 . . Core Remaining (%) 56 | 100 . . . 22 . 3 . 89 100 . . 25 . Volleys Fired 489 | . 22 16 . 1 78 74 1 81 2 30 93 4 87 Largest 3 | . 2 2 . 1 2 2 2 2 2 2 2 2 3 Hottest 254 | . 90 60 . 120 120 120 125 125 100 100 159 166 254 Shots Fired 829 | . 45 32 . 1 153 113 2 100 4 61 155 8 155 Gun 315 | . 45 32 . . . . . . 2 31 112 4 89 Cannon 460 | . . . . 1 151 92 2 72 2 30 40 4 66 Launcher 31 | . . . . . 2 21 . 5 . . 3 . . Special 23 | . . . . . . . . 23 . . . . . Kinetic 136 | . . 16 . . 1 . . . 4 61 51 . 3 Thermal 593 | . 21 . . 1 150 92 2 72 . . 95 8 152 Explosive 31 | . . . . . 2 21 . 5 . . 3 . . Electromagnetic 46 | . 24 16 . . . . . . . . 6 . . Robot Hit Streak 27 | . 6 5 . . 15 7 3 16 2 8 27 3 15 Robot Miss Streak 7 | . 5 4 . . 7 2 . 2 1 4 4 3 5 Penetration Max . | . . . . . . . . . . . . . . Secondary Targets 6 | . 4 1 . . . . . . . . 1 . . Max Gunslinging Chain 1 | . 1 1 . . . . . . . . 1 . . Shots Hit Robots 448 | . 19 17 . . 93 45 2 57 3 30 89 4 89 Core Hits 256 | . 14 10 . 1 55 48 1 15 1 22 46 2 41 Critical Kills 5 | . . . . . 1 . . . . . 4 . . Critical Parts Destroyed 1 | . . . . . . . . . . . 1 . . Critical Strikes 22 | . 2 . . . 1 . . . . 3 9 . 7 Burn 11 | . 1 . . . . . . . . . 4 . 6 Meltdown 3 | . . . . . 1 . . . . . 2 . . Destroy 3 | . . . . . . . . . . . 3 . . Blast 4 | . . . . . . . . . . 3 . . 1 Corrupt 1 | . 1 . . . . . . . . . . . . Melee Attacks 4 | . . . . . . 4 . . . . . . . Impact . | . . . . . . . . . . . . . . Slashing . | . . . . . . . . . . . . . . Piercing . | . . . . . . . . . . . . . . Sneak Attacks 1 | . . . . . . 1 . . . . . . . Combat Hostiles 1 | . . . . . . 1 . . . . . . . Follow-up Attacks . | . . . . . . . . . . . . . . Damage Inflicted 14995 | . 274 223 . 45 2563 3002 63 1328 96 1658 2889 127 2727 Guns 3845 | . 274 221 . . . . . . 52 402 1641 24 1231 Cannons 7706 | . . . . 37 2206 1157 63 956 44 772 886 89 1496 Explosions 3410 | . . . . . 354 1845 . 372 . 477 362 . . Melee . | . . . . . . . . . . . . . . Ramming 34 | . . 2 . 8 3 . . . . 7 . 14 . Kinetic 2333 | . . 86 . . 21 . . . 96 1174 806 . 150 Thermal 9429 | . 143 . . 37 2185 1157 63 956 . 477 1721 113 2577 Explosive 2933 | . . . . . 354 1845 . 372 . . 362 . . Electromagnetic 266 | . 131 135 . . . . . . . . . . . Impact . | . . . . . . . . . . . . . . Slashing . | . . . . . . . . . . . . . . Piercing . | . . . . . . . . . . . . . . Highest Corruption 13 | . 4 4 4 4 4 4 . 1 . 2 13 13 5 Average Corruption 5 | . 3 4 4 4 2 4 . 1 . 1 12 13 2 Corruption Purged . | . . . . . . . . . . . . . . Corruption Blocked . | . . . . . . . . . . . . . . Effects 213 | . 5 13 9 2 7 58 . 26 . 2 78 13 . Message Errors 43 | . . 3 1 . 2 11 . 6 . 1 15 4 . Matter Fused 48 | . . 3 2 . 3 15 . 8 . . 13 4 . Heat Flow Errors 23 | . 1 1 2 . . 8 . 4 . . 6 1 . Energy Discharges 42 | . 2 4 3 2 . 13 . 1 . . 15 2 . Parts Rejected 2 | . . 1 . . . . . . . . 1 . . Parts Fused 1 | . . . . . . . . . . . 1 . . Data Loss (minor) 22 | . 1 1 1 . . 6 . 4 . . 8 1 . Data Loss (major) 9 | . . . . . 1 2 . . . . 5 1 . Misfires 13 | . 1 . . . . 2 . 2 . 1 7 . . Alerts 7 | . . . . . 1 1 . 1 . . 4 . . Weapon Failures 3 | . . . . . . . . . . . 3 . . Overload Shots . | . . . . . . . . . . . . . . Overflow Damage 276 | . . . . . 24 133 . . . 110 2 . 7 Projectiles 59 | . . . . . 9 37 . . . 4 2 . 7 Explosions 217 | . . . . . 15 96 . . . 106 . . . Melee . | . . . . . . . . . . . . . . Knockbacks 10 | . . . . . 1 . . . . 6 2 . 1 Impact 1 | . . . . . . . . . . 1 . . . Kinetic 9 | . . . . . 1 . . . . 5 2 . 1 Secondary . | . . . . . . . . . . . . . . Self-Inflicted Damage 574 | . . 1 . 4 23 318 . 55 . 140 33 . . Shots 13 | . . . . . 1 8 . 1 . 2 1 . . Rammed 6 | . . 1 . 3 1 . . . . 1 . . . Targets Rammed 8 | . . 1 . 3 1 . . . . 1 . 2 . Kicked 2 | . . . . . . . . . . . . 2 . Crushed . | . . . . . . . . . . . . . . Highest Temperature 490 | . 239 83 169 82 204 490 57 264 75 142 397 142 488 Average Temperature 84 | . 100 19 104 43 70 121 33 51 38 50 96 48 98 Received Heat Transfer 2788 | . 132 72 . . 459 405 . 132 . 147 846 . 595 Effects 10 | . . . . . . 3 . . . . . . 7 Shutdowns 2 | . . . . . . 1 . . . . . . 1 Energy Bleed 1 | . . . . . . . . . . . . . 1 Damage (minor) 3 | . . . . . . 2 . . . . . . 1 Damage (major) 4 | . . . . . . . . . . . . . 4 Siege Activations . | . . . . . . . . . . . . . . Robots Corrupted . | . . . . . . . . . . . . . . Combat Hostiles . | . . . . . . . . . . . . . . Parts Fried . | . . . . . . . . . . . . . . Impact Corruptions . | . . . . . . . . . . . . . . Robots Melted 6 | . . . . . 1 1 . . . . 3 . 1 Combat Hostiles 5 | . . . . . . 1 . . . . 3 . 1 Parts Melted 39 | . . . . . 7 5 2 4 . . 11 2 8 Heat Transferred 15002 | . 481 . . 80 3441 1792 74 1369 . 300 2965 148 4352 Parts Sabotaged 6 | . . . . . . . . . . . 2 . 4 Parts Stolen . | . . . . . . . . . . . . . . Parts Stripped . | . . . . . . . . . . . . . . Power Chain Reactions . | . . . . . . . . . . . . . . Alert | -11 -10 -10 -10 -9 -8 -8 -7 -7 -6 -5 -5 -5 -4 ------- Run | Yrd Mat Min Exi Min Mat Gar Fac Gar Fac Fac Gar Fac Fac Peak Influence 2594 | . 266 152 . 30 671 2431 1286 2594 1384 1023 1577 846 550 Initial 1361 | . . 26 . . 11 436 1276 900 1361 677 615 827 414 Average 1022 | . 113 37 . 19 270 1508 1277 1598 1380 795 1090 833 483 Maximum Alert Level 5 | . 1 . . . 2 5 4 5 4 3 4 3 2 Low Security (%) 16 | . 79 100 . 100 47 . . . . . . . . Level 1 4 | . 20 . . . 20 . . . . . . . 11 Level 2 15 | . . . . . 31 13 . . . 15 16 . 88 Level 3 17 | . . . . . . 11 . 18 . 84 34 100 . Level 4 24 | . . . . . . 21 100 40 100 . 48 . . Level 5 20 | . . . . . . 53 . 40 . . . . . High Security . | . . . . . . . . . . . . . . Max Security . | . . . . . . . . . . . . . . Squads Dispatched 11 | . 1 . . . 4 . 1 . . 1 . 1 3 Investigation . | . . . . . . . . . . . . . . Extermination 3 | . . . . . . . 1 . . 1 . . 1 Reinforcement 6 | . 1 . . . 4 . . . . . . . 1 Assault 2 | . . . . . . . . . . . . 1 1 Garrison . | . . . . . . . . . . . . . . Intercept . | . . . . . . . . . . . . . . Searches Triggered . | . . . . . . . . . . . . . . Construction Impeded . | . . . . . . . . . . . . . . Haulers Reinforced . | . . . . . . . . . . . . . . Active Scanning Responses . | . . . . . . . . . . . . . . Cargo Convoy Interrupts . | . . . . . . . . . . . . . . Stealth | -11 -10 -10 -10 -9 -8 -8 -7 -7 -6 -5 -5 -5 -4 --------- Run | Yrd Mat Min Exi Min Mat Gar Fac Gar Fac Fac Gar Fac Fac Distress Signals 4 | . 1 . . . 2 . . . . . . . 1 Communications Jammed . | . . . . . . . . . . . . . . Distress Signals . | . . . . . . . . . . . . . . Times Spotted 233 | . 15 14 . 2 44 44 1 32 1 13 37 2 28 Peak Tracking Total 8 | . 4 4 . 2 7 6 1 4 1 3 6 1 8 Tactical Retreats 23 | . . 1 . . 5 5 . 6 . . 5 . 1 Traps | -11 -10 -10 -10 -9 -8 -8 -7 -7 -6 -5 -5 -5 -4 ------- Run | Yrd Mat Min Exi Min Mat Gar Fac Gar Fac Fac Gar Fac Fac Traps Triggered 26 | . 4 . . . 2 2 . 9 . 2 6 . 1 Indirectly . | . . . . . . . . . . . . . . Trap Hack Attempts 5 | . . . . . . 5 . . . . . . . Triggered . | . . . . . . . . . . . . . . Disarmed 1 | . . . . . . 1 . . . . . . . Reprogrammed 1 | . . . . . . 1 . . . . . . . Reused 10 | . . 1 . . . 4 . . . . 5 . . Traps Extracted . | . . . . . . . . . . . . . . Installed 12 | . . 1 . . . 4 . . . . 7 . . Triggered 11 | . . 1 . . . 5 . . . . 5 . . Most Traps Carried 5 | . . 5 4 4 4 4 . . . . 5 . . Machines | -11 -10 -10 -10 -9 -8 -8 -7 -7 -6 -5 -5 -5 -4 ---------- Run | Yrd Mat Min Exi Min Mat Gar Fac Gar Fac Fac Gar Fac Fac Machines Disabled 24 | . 1 . . . 3 5 . 6 . 6 3 . . Max in Single Turn 6 | . 1 . . . 1 1 . 1 . 6 2 . . Garrison Access 1 | . . . . . . . . . . 1 . . . Garrison Relay 9 | . . . . . . 4 . 5 . . . . . Phase Generator 1 | . . . . . . 1 . . . . . . . Machines Repaired . | . . . . . . . . . . . . . . Machines Dismantled . | . . . . . . . . . . . . . . Machines Sabotaged . | . . . . . . . . . . . . . . Overloaded Fab Kills . | . . . . . . . . . . . . . . Hacking | -11 -10 -10 -10 -9 -8 -8 -7 -7 -6 -5 -5 -5 -4 --------- Run | Yrd Mat Min Exi Min Mat Gar Fac Gar Fac Fac Gar Fac Fac Machines Accessed 25 | . 3 . 1 . 7 2 1 2 . 5 2 2 . Terminals 16 | . 3 . . . 5 2 . 2 . 2 2 . . Fabricators 2 | . . . . . . . . . . 1 . 1 . Repair Stations 1 | . . . . . 1 . . . . . . . . Recycling Units . | . . . . . . . . . . . . . . Scanalyzers 1 | . . . . . . . . . . . . 1 . Garrison Access 4 | . . . . . 1 . 1 . . 2 . . . Total Hacks 48 | . 9 . 1 . 15 4 1 4 . 5 5 4 . Successful 21 | . 4 . 1 . 8 1 1 1 . 3 . 2 . Failed 27 | . 5 . . . 7 3 . 3 . 2 5 2 . Catastrophic 4 | . . . . . 1 1 . . . 1 1 . . Database Lockouts . | . . . . . . . . . . . . . . Manual 21 | . 7 . 1 . 12 . . . . 1 . . . Terminals 37 | . 9 . . . 13 4 . 4 . 2 5 . . Fabricators 2 | . . . . . . . . . . 1 . 1 . Repair Stations 1 | . . . . . 1 . . . . . . . . Recycling Units . | . . . . . . . . . . . . . . Scanalyzers 3 | . . . . . . . . . . . . 3 . Garrison Access 4 | . . . . . 1 . 1 . . 2 . . . Terminal Hacks 7 | . 2 . 1 . 2 1 . 1 . . . . . Robot Analysis 2 | . 1 . . . 1 . . . . . . . . Branch Access Points 1 | . 1 . . . . . . . . . . . . Emergency Access Points 1 | . . . . . . . . 1 . . . . . Locate Traps 1 | . . . . . 1 . . . . . . . . Garrison Registry 1 | . . . . . . 1 . . . . . . . Derelict Proto ID Bank 1 | . . . 1 . . . . . . . . . . Fabricator Hacks . | . . . . . . . . . . . . . . Repair Station Hacks . | . . . . . . . . . . . . . . Recycling Unit Hacks . | . . . . . . . . . . . . . . Scanalyzer 2 | . . . . . . . . . . . . 2 . Insert Component 1 | . . . . . . . . . . . . 1 . Analyze 1 | . . . . . . . . . . . . 1 . Garrison Access Hacks 4 | . . . . . 1 . 1 . . 2 . . . Unlock Access 3 | . . . . . 1 . 1 . . 1 . . . Seal Access 1 | . . . . . . . . . . 1 . . . Unauthorized Hacks 8 | . 2 . . . 5 . . . . 1 . . . Terminals 7 | . 2 . . . 5 . . . . . . . . Assimilate 1 | . . . . . 1 . . . . . . . . Skim 6 | . 2 . . . 4 . . . . . . . . Fabricators 1 | . . . . . . . . . . 1 . . . Liberate 1 | . . . . . . . . . . 1 . . . Repair Stations . | . . . . . . . . . . . . . . Recycling Units . | . . . . . . . . . . . . . . Scanalyzers . | . . . . . . . . . . . . . . Garrison Access . | . . . . . . . . . . . . . . Data Cores Recovered . | . . . . . . . . . . . . . . Used . | . . . . . . . . . . . . . . Hacking Detections 19 | . 2 . . . 5 2 1 2 . 4 2 1 . Full Trace Events 2 | . . . . . . 1 . 1 . . . . . Feedback Events . | . . . . . . . . . . . . . . Feedback Blocked . | . . . . . . . . . . . . . . Robot Schematics Acquired . | . . . . . . . . . . . . . . Robots Built . | . . . . . . . . . . . . . . Authchips . | . . . . . . . . . . . . . . Time . | . . . . . . . . . . . . . . Total Robot Build Rating . | . . . . . . . . . . . . . . Part Schematics Acquired 1 | . . . . . . . . . . . . 1 . Parts Built . | . . . . . . . . . . . . . . Authchips . | . . . . . . . . . . . . . . Time . | . . . . . . . . . . . . . . Total Part Build Rating . | . . . . . . . . . . . . . . Parts Repaired . | . . . . . . . . . . . . . . Time . | . . . . . . . . . . . . . . Parts Recycled . | . . . . . . . . . . . . . . Recycled Matter . | . . . . . . . . . . . . . . Retrieved Matter . | . . . . . . . . . . . . . . Retrieved Components . | . . . . . . . . . . . . . . Parts Scanalyzed 1 | . . . . . . . . . . . . 1 . Part Schematics Acquired 1 | . . . . . . . . . . . . 1 . Parts Damaged 1 | . . . . . . . . . . . . 1 . Bothacking | -11 -10 -10 -10 -9 -8 -8 -7 -7 -6 -5 -5 -5 -4 ------------ Run | Yrd Mat Min Exi Min Mat Gar Fac Gar Fac Fac Gar Fac Fac Used RIF Installer 3 | . . . . . . 1 . 1 . . 1 . . Watcher Feeds 1 | . . . . . . . . 1 . . . . . Alert ID Control 1 | . . . . . . . . . . . 1 . . Robots Hacked 14 | . . . . . . 3 . 11 . . . . . Non-combat . | . . . . . . . . . . . . . . Combat 14 | . . . . . . 3 . 11 . . . . . Robot Hacks Applied 15 | . . . . . . 3 . 12 . . . . . parse_system 1 | . . . . . . . . 1 . . . . . amplify_resonance 1 | . . . . . . . . 1 . . . . . streamctrl_high 5 | . . . . . . 1 . 4 . . . . . formatsys_high 8 | . . . . . . 2 . 6 . . . . . Relay Couplers Released 42 | . . . . . . 17 . 25 . . . . . Machine Destruction 39 | . . . . . . 17 . 22 . . . . . Programmers 3 | . . . . . . . . 3 . . . . . Attached 12 | . . . . . . 3 . 9 . . . . . Fabnet Peak Effective % . | . . . . . . . . . . . . . . Robots Rewired 12 | . . . . . . . . 3 . . 9 . . Allies Hacked 1 | . . . . . . . . . . . 1 . . Hacks Repelled . | . . . . . . . . . . . . . . Allies | -11 -10 -10 -10 -9 -8 -8 -7 -7 -6 -5 -5 -5 -4 -------- Run | Yrd Mat Min Exi Min Mat Gar Fac Gar Fac Fac Gar Fac Fac Total Allies 27 | . . 1 . . . 3 . 14 . . 9 . . Largest Group 6 | . . 1 . . . 2 1 5 1 1 6 1 . Highest-Rated Group 159 | . . 31 . . . 28 13 124 39 39 159 43 . Highest-Rated Ally 85 | . . 31 . . . 16 13 85 39 39 43 43 . Total Orders 3 | . . . . . . . . 3 . . . . . STAY 2 | . . . . . . . . 2 . . . . . GUARD 1 | . . . . . . . . 1 . . . . . Ally Attacks 211 | . . 14 . . . 24 2 134 . 2 31 4 . Total Damage 2968 | . . 107 . . . 359 39 1495 . 57 731 180 . Kills 29 | . . 5 . . . 3 . 14 . 1 6 . . Allies Corrupted 1 | . . . . . . . . 1 . . . . . Allies Melted 2 | . . . . . . . . 1 . . 1 . . Intel | -11 -10 -10 -10 -9 -8 -8 -7 -7 -6 -5 -5 -5 -4 ------- Run | Yrd Mat Min Exi Min Mat Gar Fac Gar Fac Fac Gar Fac Fac Robot Analysis Total 2 | . 1 . . . 1 . . . . . . . . Derelict Logs Recovered 2 | . . 1 . 1 . . . . . . . . . Drone Launches . | . . . . . . . . . . . . . . Drone Recoveries . | . . . . . . . . . . . . . . Exploration | -11 -10 -10 -10 -9 -8 -8 -7 -7 -6 -5 -5 -5 -4 ------------- Run | Yrd Mat Min Exi Min Mat Gar Fac Gar Fac Fac Gar Fac Fac Turns Passed 13202 | . 490 660 363 137 1962 2587 369 3040 132 488 1922 310 742 Spaces Moved 6178 | 1 255 337 207 105 1023 1285 146 1204 45 265 793 196 316 Core 16 | . . . . . . . . . . . 12 . 4 Treads 2172 | . 228 138 . . 46 40 146 1204 45 33 292 . . Legs 2880 | 1 27 . . . 634 1245 . . . . 475 196 302 Wheels 1110 | . . 199 207 105 343 . . . . 232 14 . 10 Hover . | . . . . . . . . . . . . . . Flight . | . . . . . . . . . . . . . . Fastest Speed 100 | 120 120 115 115 115 105 120 240 160 240 125 120 120 100 Average Speed 160 | 120 156 138 115 115 126 162 240 213 240 143 152 147 131 Slowest Speed 600 | 120 240 240 115 115 270 330 240 400 240 400 600 190 260 Overloaded Moves . | . . . . . . . . . . . . . . Propulsion Burnouts . | . . . . . . . . . . . . . . Robots Hopped . | . . . . . . . . . . . . . . Cave-ins Triggered . | . . . . . . . . . . . . . . Exploration Rate (%) 39 | 2 53 71 61 29 87 85 5 69 2 11 66 6 7 Regions Visited 13 Branch Regions 3 Pre-discovered Areas 1 | . . . . 1 . . . . . . . . . Known Exits Taken 4 | . 1 . . . 1 . 1 . . 1 . . . Unknown Exits Taken 6 | 1 . 1 1 1 . . . . 1 . . 1 . Scrap Searched 1 | . . . . 1 . . . . . . . . . Spaces Dug 13 | . . . . . 2 . . 3 . 3 . . 5 Terrain Destroyed 329 | . . . . . 32 158 . 38 1 44 36 1 19 Melee . | . . . . . . . . . . . . . . Projectile 66 | . . . . . 16 . . . 1 19 10 1 19 AOE 263 | . . . . . 16 158 . 38 . 25 26 . . Terrain Rammed . | . . . . . . . . . . . . . . Walls Destroyed . | . . . . . . . . . . . . . . Machines Disabled . | . . . . . . . . . . . . . . Actions | -11 -10 -10 -10 -9 -8 -8 -7 -7 -6 -5 -5 -5 -4 --------- Run | Yrd Mat Min Exi Min Mat Gar Fac Gar Fac Fac Gar Fac Fac Total 8724 | . 305 498 336 119 1529 1677 163 1589 67 325 1378 210 528 Wait 1559 | . 4 134 119 8 384 259 9 231 21 21 273 1 95 Move 6167 | . 254 336 206 104 1023 1284 145 1203 44 265 792 195 316 Hop . | . . . . . . . . . . . . . . Pick Up 68 | . 8 6 1 . 12 9 2 11 . . 12 3 4 Fast Attach 79 | . 4 1 . 1 13 7 2 11 . 4 25 2 9 Attach 53 | . 4 2 2 1 3 7 1 12 . 3 7 . 11 Detach 12 | . . . 2 1 . 2 . 3 . . 2 . 2 Swap 22 | . 1 . . . 4 7 1 3 . . 4 1 1 Drop 76 | . 8 1 6 . 11 10 2 20 . 1 12 2 3 Fire 489 | . 22 16 . 1 78 74 1 81 2 30 93 4 87 Melee 4 | . . . . . . 4 . . . . . . . Ram 5 | . . 1 . 3 . . . . . 1 . . . Kick 2 | . . . . . . . . . . . . 2 . Crush 1 | . . . . . 1 . . . . . . . . Escape Stasis 34 | . . . . . . 5 . 14 . . 15 . . Rewire 136 | . . . . . . . . . . . 136 . . Trap 17 | . . 1 . . . 9 . . . . 7 . . Miscellaneous . | . . . . . . . . . . . . . . Route ------- -11/Scrapyard -10/Materials (discovered 2 exits: [*Mat] / *Min) -10/Mines (discovered 2 exits: [*Mat] / *Exi) -10/Exiles -9/Mines -8/Materials (discovered 4 exits: *Fac x3 / Gar) -8/Garrison (discovered 3 exits: *Fac x3) -7/Factory -7/Garrison (discovered 2 exits: [*Fac x2]) -6/Factory -5/Factory -5/Garrison (discovered 2 exits: *Fac x2) -5/Factory -4/Factory History --------- Turn | Location | Event 1 | -11/Scrapyard | Discovered new exit (range 0) 1 | -11/Scrapyard | Entered Materials 293 | -10/Materials | Discovered new exit (range 13) 307 | -10/Materials | Build established: Mutant 330 | -10/Materials | Identified exit to Mines 491 | -10/Materials | Entered Mines 555 | -10/Mines | Found a hidden stash of uninstalled traps 792 | -10/Mines | Excavation squad dispatched 792 | -10/Mines | A large section of the Mines collapsed 904 | -10/Mines | Core integrity fell below 50% 1003 | -10/Mines | Learned Materials emergency access door positions 1025 | -10/Mines | Received a Mining Laser from a helpful Derelict 1042 | -10/Mines | Excavation squad dispatched 1101 | -10/Mines | Discovered new exit (range 4) 1129 | -10/Mines | Received a Rocket Launcher from a helpful Derelict 1146 | -10/Mines | Deemed a non-threat by the Exiles lab entrance 1146 | -10/Mines | Discovered new exit (range 5) 1151 | -10/Mines | Entered Exiles 1184 | -10/Exiles | Met 8R-AWN 1208 | -10/Exiles | Met EX-HEX 1239 | -10/Exiles | Met EX-BIN 1255 | -10/Exiles | Aligned with FarCom system 1256 | -10/Exiles | Given EX-Vault access code 1284 | -10/Exiles | Opened EX-Vault 1287 | -10/Exiles | Found Gui. Plasma Cannon 1313 | -10/Exiles | Warned to stay clear of 0b10 Research branches 1332 | -10/Exiles | Exiles lab attacked by MAIN.C 1499 | -10/Exiles | Discovered new exit (range 14) 1514 | -10/Exiles | Left Exiles lab with Gui. Plasma Cannon 1514 | -10/Exiles | Entered Mines 1633 | -9/Mines | Discovered new exit (range 7) 1638 | -9/Mines | Learned location of Zion (-6) 1651 | -9/Mines | Entered Materials 1651 | -8/Materials | Evolved 4 slots: Propulsion x2, Utility x2 2833 | -8/Materials | Discovered new exit (range 11) 2909 | -8/Materials | Core integrity fell below 50% 3036 | -8/Materials | Discovered new exit (range 16) 3323 | -8/Materials | Discovered new exit (range 15) 3613 | -8/Materials | Identified exit to Garrison 3613 | -8/Materials | Entered Garrison 3721 | -8/Garrison | Triggered checkpoint 3765 | -8/Garrison | Discovered new exit (range 65) 3765 | -8/Garrison | Discovered new exit (range 75) 3765 | -8/Garrison | Discovered new exit (range 30) 3899 | -8/Garrison | Triggered checkpoint 4021 | -8/Garrison | Destroyed 13 combat bots 4025 | -8/Garrison | Triggered checkpoint 4323 | -8/Garrison | Destroyed 7 combat bots 4460 | -8/Garrison | Phase Generator disabled 4529 | -8/Garrison | Triggered checkpoint 4564 | -8/Garrison | Core integrity fell below 20% 4634 | -8/Garrison | Build established: Scavenger-Mutant 5081 | -8/Garrison | Installed Relay Interface Framework 5704 | -8/Garrison | Garrison Relay disabled 5788 | -8/Garrison | Triggered checkpoint 5963 | -8/Garrison | Garrison Relay disabled 5963 | -8/Garrison | Garrison Relay disabled 6009 | -8/Garrison | Build established: Bothacker-Mutant 6200 | -8/Garrison | Entered Factory 6200 | -7/Factory | Accompanied by 1 ally 6200 | -7/Factory | Evolved 2 slots: Utility x2 6552 | -7/Factory | Identified exit to Garrison 6569 | -7/Factory | Entered Garrison 6787 | -7/Garrison | Triggered checkpoint 6839 | -7/Garrison | Triggered checkpoint 7101 | -7/Garrison | Triggered checkpoint 7141 | -7/Garrison | Triggered checkpoint 7157 | -7/Garrison | Triggered checkpoint 7217 | -7/Garrison | Expanded RIF knowledge: Watcher Feeds 7238 | -7/Garrison | Garrison Relay disabled 7289 | -7/Garrison | Triggered checkpoint 7405 | -7/Garrison | Triggered checkpoint 7460 | -7/Garrison | Lost 3 allies 7785 | -7/Garrison | Triggered checkpoint 7818 | -7/Garrison | Garrison Relay disabled 7849 | -7/Garrison | Discovered new exit (range 13) 7932 | -7/Garrison | Lost 3 allies 8463 | -7/Garrison | Garrison Relay disabled 8499 | -7/Garrison | Rescued a captive Derelict 8562 | -7/Garrison | Discovered new exit (range 11) 8579 | -7/Garrison | Garrison Relay disabled 8643 | -7/Garrison | Spotted B-75 Beast 8693 | -7/Garrison | Hijacked Beast 4a control node with streamctrl_high 8790 | -7/Garrison | Destroyed Beast 4a 9058 | -7/Garrison | Found Quantum Capacitor 9348 | -7/Garrison | Build established: Scavenger-Mutant 9609 | -7/Garrison | Entered Factory 9609 | -6/Factory | Accompanied by 1 ally 9609 | -6/Factory | Evolved 2 slots: Utility x2 9700 | -6/Factory | Discovered new exit (range 16) 9741 | -6/Factory | Entered another Factory area 9741 | -5/Factory | Accompanied by 1 ally 9741 | -5/Factory | Evolved 2 slots: Power x1, Utility x1 10229 | -5/Factory | Identified exit to Garrison 10229 | -5/Factory | Entered Garrison 10249 | -5/Garrison | System corruption reached 10% 10367 | -5/Garrison | Lost 3 parts (1n1u1w) 10423 | -5/Garrison | Triggered checkpoint 10492 | -5/Garrison | Expanded RIF knowledge: Alert ID Control 10652 | -5/Garrison | Spotted B-75 Beast 10844 | -5/Garrison | Destroyed B-75 Beast 10925 | -5/Garrison | Lost 7 parts (1p3n1u2w) 11024 | -5/Garrison | Core integrity fell below 50% 11071 | -5/Garrison | Lost 3 parts (1p1n1w) 11094 | -5/Garrison | Triggered checkpoint 11182 | -5/Garrison | Lost 3 parts (2u1w) 11285 | -5/Garrison | Triggered checkpoint 11321 | -5/Garrison | Found Fusion Bomb Launcher 11361 | -5/Garrison | Triggered checkpoint 11694 | -5/Garrison | Lost 3 allies 11709 | -5/Garrison | P-70 Sage assimilated allied Chaingunner 6a 11942 | -5/Garrison | Discovered new exit (range 10) 11956 | -5/Garrison | Spotted B-75 Beast 12067 | -5/Garrison | Discovered new exit (range 10) 12151 | -5/Garrison | Entered Factory 12151 | -5/Factory | Accompanied by 1 ally 12420 | -5/Factory | Discovered new exit (range 5) 12451 | -5/Factory | First assault squad dispatched 12461 | -5/Factory | Entered another Factory area 12461 | -4/Factory | Evolved 2 slots: Utility x1, Weapon x1 12961 | -4/Factory | First assault squad dispatched 13160 | -4/Factory | Core integrity fell below 50% 13194 | -4/Factory | Core integrity fell below 20% 13203 | -4/Factory | Destroyed by G-67 Veteran with Plasma Rifle Last Messages --------------- 13182_ G-67 Veteran destroyed. 13184_ Acquired Antigrav System. 13188_ Adv. Heat Sink destroyed. 13191_ Antigrav System destroyed. 13192_ Acquired 69 matter. 13193_ Graphene Brace destroyed. 13194_ Phase Gun destroyed. 13195_ Acquired Mic. Fission Core. 13196_ ALERT: Cargo convoy en route, clear transfer corridor. 13196_ Acquired 10 matter. 13197_ P-70 Sage resets G-67 Veteran, system corruption cleaned. 13198_ Acquired Corrupted Phase Gun. 13198_ Integrated Corrupted Phase Gun (+3). 13198_ Complication: System interference. 13198_ Core Analyzer temporarily disabled. 13198_ Imp. Armor Integrity Analyzer temporarily disabled. 13202_ Phase Gun destroyed. Map ----- +----------------------------------------------------+ | +#### #????????????????????????????????????? | | # #????????????????????????????????????? | | # #????????????????????????????????????? | | + #????????????????? ? ????????????????? | | # #????????????????" " ???????????????? | | # #??????????????? " " ??????????????? | | # [ #?????####?##?? ??????????????? | | # ############### ??????????????? | | # # % ?????????????? | | # # = ?????????????? | | + %%+% *! ????????????? | | # [#%% " *= ????????????? | | ######### %"%"=%[= ????????????? | | #? # %##############?????????????????? | | # # %#??????????????????????????????? | | # # #??????????????????????????????? | | + # #??????????????????????????????? | | # # #??????###?????????????????????? | | # # %=!##############?????????????????? | | #? # *=%# ^ #?????????????????? | | #? # !%# #?????????????????? | | #?? # %/# ^"""""" #?????????????????? | | #?? # /!# """""" ^ #?????????????????? | | #??? # %[# "" *"" #?????????????????? | | ##??##### # ! %"" ##????????????????? | | T#??????# + g@ ##????????????????? | | #??????# # gp !!! ##????????????????? | | ##??#???# # !!! #?????????????????? | | ######### # !! #?????????????????? | | # #?????????????????? | | # #?????????????????? | | """ ##############?????????????????? | | """"" #?????###??????????????????????? | | """"" #??????????????????????????????? | | ########??????????????????????????????? | | """ ## #??????????????????????????????????? | | """"" ## #??????????????????????????????????? | | """"" ####??????????????????????????????????? | | #?????????????????????????????????????? | | """ #?????????????????????????????????????? | | !! """"" #?????????????????????????????????????? | | !! """"" #?????????????????????????????????????? | | !! #?????????????????????????????????????? | | #?????????????????????????????????????? | | "" +?????????????????????????????????????? | | "" #?????????????????????????????????????? | | != Y" ??????????????????????????????????????? | | == "" ??????????????????????????????????????? | | =/ "" ??????????????????????????????????????? | | ? ??????????????????????????????????????? | +----------------------------------------------------+ Best States ------------- Heat Dissipation 81 Energy Generation 34 Energy Capacity 350 Matter Stores 300 Matter Capacity 300 Sight Range 16 Terrain Scan Density 10 Base Temperature (-) 200 Armor Coverage 225 Resistance: KI 30 Resistance: TH 15 Resistance: EM 15 Weapon Cycling 15 Evasion (%) 55 Targeting Accuracy 5 Target Analysis 6 Core Analysis 6 Armor Integrity Analysis 40 Recoil Reduction 3 Offensive Hacking 10 Relay Coupler Types 2 Relay Coupler Value 36 Authchip Count 1 Item Schematics ----------------- Fusion Bomb Launcher | -5/Factory | Scanalyzed Robot Schematics ------------------ None Fabricated ------------ Nothing Alien Tech Used ----------------- None Achievements -------------- None Challenges ------------ None Game ------ Seed ProcessingBoreFlakker Manual? 0 Play Time 01:19:25 Cumulative 108.0 hours Start 2024.08.25 @ 19:35:20 End 2024.08.26 @ 15:05:58 Sessions 3 Manual Loads 0 Difficulty Rogue Special Mode None Game No. 183 Rogue 182 Adventurer 1 Explorer 0 Win Type - Total 0 Types 0/0/0/0/0/0/0/0/0 Lore% 60 Gallery% 64 Achievement% 48 Wizard Run 0 Options --------- Layout 1 ASCII 0 Keyboard 0 Movement Mouse Keybinds 0 Fullscreen 2 Font 20/SmallcapsGlow Map View 54x42 Zoom Use 0% Tactical HUD 1 Map Filters NONE Filters NONE Steam 0 RUN: 0aa08fe7-9528-456d-b922-1d4be97800bf